bitfinex/quotes_BTCUSD_20251016
["timestamp","ask_amount","ask_price","bid_price","bid_amount"]
[1760590205677,4.00004974,111110.0,111100.0,0.84074024]
[1760590207207,4.00004974,111110.0,111100.0,0.72698024]
[1760590207861,4.00004974,111110.0,111100.0,0.50074024]
[1760590208073,4.00004974,111110.0,111100.0,0.38698024]
[1760590208546,4.00004974,111110.0,111100.0,0.50074024]
[1760590209646,4.00004974,111110.0,111100.0,0.38698024]
[1760590209861,4.00004974,111110.0,111100.0,0.50074024]
[1760590210039,4.00004974,111110.0,111100.0,0.38698024]
[1760590210278,4.00004974,111110.0,111100.0,0.50074024]
[1760590211148,4.00004974,111110.0,111100.0,0.38698024]
[1760590211636,4.00004974,111110.0,111100.0,0.50074024]
[1760590212539,4.00004974,111110.0,111100.0,0.72698024]
[1760590212994,4.00004974,111110.0,111100.0,0.84074024]
[1760590213435,4.00004974,111110.0,111100.0,0.93569024]
[1760590213909,4.00004974,111110.0,111100.0,0.82193024]
[1760590214123,4.00004974,111110.0,111100.0,0.93569024]
[1760590214542,4.00004974,111110.0,111100.0,0.82193024]
[1760590214749,4.00004974,111110.0,111100.0,0.93569024]
[1760590214964,4.00004974,111110.0,111100.0,0.82193024]
[1760590215177,4.00004974,111110.0,111100.0,0.93569024]
[1760590216949,4.00004974,111110.0,111100.0,0.76789024]
[1760590217176,4.00004974,111110.0,111100.0,0.93569024]
[1760590217375,4.00004974,111110.0,111100.0,0.93565024]
[1760590217664,4.00004974,111110.0,111100.0,0.82193024]
[1760590218287,4.00004974,111110.0,111100.0,0.93565024]
[1760590218730,4.00004974,111110.0,111100.0,0.82193024]
[1760590218936,4.00004974,111110.0,111100.0,0.93565024]
[1760590219141,3.98541184,111110.0,111100.0,0.82193024]
[1760590219564,3.98541184,111110.0,111100.0,0.93565024]
[1760590222830,3.44722913,111110.0,111100.0,1.22193024]
[1760590222832,3.39692151,111110.0,111100.0,1.22193024]
[1760590223086,3.39692151,111110.0,111100.0,1.36253301]
[1760590223313,3.39692151,111110.0,111100.0,1.24881301]
[1760590223550,3.39692151,111110.0,111100.0,1.36253301]
[1760590224406,2.95752131,111110.0,111100.0,1.24881301]
[1760590224641,2.6942586,111110.0,111100.0,1.24881301]
[1760590224860,2.40936995,111110.0,111100.0,1.76253301]
[1760590225159,2.21942431,111110.0,111100.0,1.76253301]
[1760590225374,2.13726882,111110.0,111100.0,1.64881301]
[1760590225749,2.13726882,111110.0,111100.0,1.76253301]
[1760590226328,2.13726882,111110.0,111100.0,1.64881301]
[1760590226546,2.13726882,111110.0,111100.0,1.24881301]
[1760590226752,2.13726882,111110.0,111100.0,1.22193024]
[1760590226955,2.13726882,111110.0,111100.0,1.33565024]
[1760590227190,2.13726882,111110.0,111100.0,1.22193024]
[1760590227394,2.13726882,111110.0,111100.0,1.33565024]
[1760590228192,2.13726882,111110.0,111100.0,1.73565024]
[1760590228392,1.64566709,111110.0,111100.0,1.62193024]
[1760590228592,1.61887393,111110.0,111100.0,1.73565024]
[1760590228793,1.61887393,111110.0,111100.0,1.62193024]
[1760590229024,1.61887393,111110.0,111100.0,1.73565024]
[1760590229805,1.61887393,111110.0,111100.0,1.80391368]
[1760590231550,1.61887393,111110.0,111100.0,1.23615368]
[1760590231727,1.61887393,111110.0,111100.0,1.29019368]
[1760590231933,1.61887393,111110.0,111100.0,1.40391368]
[1760590232148,1.02716816,111110.0,111100.0,1.40391368]
[1760590232376,0.48333532,111110.0,111100.0,1.79287251]
[1760590232582,0.48333532,111110.0,111100.0,1.67915251]
[1760590232583,0.41377052,111110.0,111100.0,1.67915251]
[1760590232834,0.13130252,111110.0,111100.0,1.79287251]
[1760590233050,0.10428442,111110.0,111100.0,1.67915251]
[1760590233262,1e-08,111110.0,111100.0,1.79287251]
[1760590233622,0.00449432,111130.0,111120.0,1.05111788]
[1760590233816,0.00454428,111130.0,111120.0,1.2173548]
[1760590234402,0.00454428,111130.0,111120.0,1.24439146]
[1760590234604,0.00454428,111130.0,111120.0,1.64439146]
[1760590235458,0.0752,111160.0,111150.0,0.17993702]
[1760590235665,0.07569973,111160.0,111150.0,0.34729955]
[1760590235828,0.07569973,111160.0,111150.0,0.23357955]
[1760590236370,0.07569973,111160.0,111150.0,0.37433621]
[1760590237029,0.07569973,111160.0,111150.0,0.42833621]
[1760590237690,0.07569973,111160.0,111150.0,0.42829621]
[1760590238369,0.07569973,111160.0,111150.0,1.10034162]
[1760590239645,0.07569973,111160.0,111150.0,0.98666162]
[1760590239761,0.07569973,111160.0,111150.0,1.10034162]
[1760590239966,0.07569973,111160.0,111150.0,0.98666162]
[1760590240176,0.07569973,111160.0,111150.0,1.10034162]
[1760590240374,0.07569973,111160.0,111150.0,0.98666162]
[1760590240587,0.07569973,111160.0,111150.0,1.10034162]
[1760590240983,0.07746253,111160.0,111150.0,1.10034162]
[1760590241407,0.07746253,111160.0,111150.0,0.98666162]
[1760590241612,0.07746253,111160.0,111150.0,1.10034162]
[1760590244933,0.07746253,111160.0,111150.0,0.76829621]
[1760590245141,0.07746253,111160.0,111150.0,0.10764253]
[1760590245337,0.07746253,111160.0,111150.0,0.12563623]
[1760590245560,0.07746253,111160.0,111150.0,0.23931623]
[1760590245759,0.07746253,111160.0,111150.0,0.22132253]
[1760590246807,0.07746253,111160.0,111150.0,0.10764253]
[1760590247009,0.07746253,111160.0,111150.0,0.23931623]
[1760590247212,0.07746253,111160.0,111150.0,0.22132253]
[1760590247414,0.07746253,111160.0,111150.0,0.10764253]
[1760590247615,0.07746253,111160.0,111150.0,1.12748094]
[1760590247817,0.07746253,111160.0,111150.0,0.92955022]
[1760590248023,0.07746253,111160.0,111150.0,1.44948724]
[1760590248439,0.07746253,111160.0,111150.0,1.33580724]
[1760590248640,0.07746253,111160.0,111150.0,1.44948724]
[1760590248845,0.07746253,111160.0,111150.0,0.77744183]
[1760590250232,0.07746253,111160.0,111150.0,0.66376183]
[1760590250469,0.07746253,111160.0,111150.0,1.44948724]
[1760590250904,0.07746253,111160.0,111150.0,0.48382481]
[1760590251095,0.07746253,111160.0,111150.0,0.59750481]
[1760590251405,0.07746253,111160.0,111150.0,0.66376183]
[1760590251606,0.07746253,111160.0,111150.0,0.77744183]
[1760590254166,0.07746253,111160.0,111150.0,0.05364253]
[1760590254362,0.07746253,111160.0,111150.0,0.23931623]
[1760590254564,0.07746253,111160.0,111150.0,0.22132253]
[1760590255746,0.07746253,111160.0,111150.0,0.40125955]
[1760590255947,0.07746253,111160.0,111150.0,0.22132253]
[1760590260500,0.07746253,111160.0,111150.0,0.40125955]
[1760590260912,0.07746253,111160.0,111150.0,0.22132253]
[1760590261054,0.07746253,111160.0,111150.0,0.10764253]
[1760590261261,0.07746253,111160.0,111150.0,0.23931623]
[1760590261454,0.07746253,111160.0,111150.0,0.22132253]
[1760590265084,0.60054954,111190.0,111150.0,0.22132253]
[1760590265286,0.60069942,111190.0,111160.0,0.1076822]
[1760590265517,0.60069942,111190.0,111160.0,0.2213622]
[1760590265710,0.60069942,111190.0,111160.0,0.20337012]
[1760590265890,0.60069942,111190.0,111170.0,0.01799046]
[1760590266088,0.60069942,111190.0,111180.0,0.20337012]
[1760590267401,0.60069942,111190.0,111180.0,0.08969012]
[1760590267610,0.78057171,111190.0,111180.0,0.20337012]
[1760590267816,0.78057171,111190.0,111180.0,0.20537012]
[1760590268647,0.78057171,111190.0,111180.0,0.09169012]
[1760590268854,0.78057171,111190.0,111180.0,0.20637012]
[1760590269266,0.78057171,111190.0,111180.0,0.09269012]
[1760590269506,0.61753857,111190.0,111180.0,0.09269012]
[1760590269727,0.61753857,111190.0,111180.0,0.003]
[1760590269728,3.20476957,111190.0,111180.0,0.003]
[1760590270182,3.20476957,111190.0,111180.0,0.06912]
[1760590270381,3.20476957,111190.0,111180.0,0.003]
[1760590270596,3.20476957,111190.0,111180.0,0.11668]
[1760590270806,3.20476957,111190.0,111180.0,0.003]
[1760590271023,3.20476957,111190.0,111180.0,0.11668]
[1760590271240,3.20653167,111190.0,111180.0,0.11668]
[1760590271905,3.20653167,111190.0,111180.0,0.003]
[1760590272123,3.20653167,111190.0,111180.0,0.08396]
[1760590274758,3.20653167,111190.0,111180.0,0.003]
[1760590275180,3.20653167,111190.0,111180.0,0.08396]
[1760590275834,3.20653167,111190.0,111180.0,0.11668]
[1760590276897,3.20653167,111190.0,111180.0,0.003]
[1760590277128,3.20653167,111190.0,111180.0,0.08396]
[1760590277557,3.53915963,111190.0,111180.0,0.08396]
[1760590278187,3.53915963,111190.0,111180.0,0.003]
[1760590278403,3.53915963,111190.0,111180.0,0.11668]
[1760590280380,3.53813825,111190.0,111180.0,0.11668]
[1760590282809,3.32323678,111190.0,111180.0,0.11668]
[1760590283147,3.50310907,111190.0,111180.0,0.003]
[1760590283342,3.50310907,111190.0,111180.0,0.11668]
[1760590284472,3.50310907,111190.0,111180.0,0.003]
[1760590284898,3.50310907,111190.0,111180.0,0.11668]
[1760590285255,3.50310907,111190.0,111180.0,0.003]
[1760590285652,3.50310907,111190.0,111180.0,0.11668]
[1760590286954,3.50310907,111190.0,111180.0,0.003]
[1760590287370,3.50310907,111190.0,111180.0,0.11668]
[1760590290663,3.50310907,111190.0,111180.0,0.003]
[1760590290860,3.50310907,111190.0,111180.0,0.11668]
[1760590291085,3.11803689,111190.0,111180.0,0.11668]
[1760590291912,2.55309242,111190.0,111180.0,0.11668]
[1760590292136,0.0017621,111190.0,111180.0,0.11067896]
[1760590292392,0.38683428,111190.0,111180.0,0.22435896]
[1760590292608,0.38683428,111190.0,111180.0,0.20637012]
[1760590294448,0.38683428,111190.0,111180.0,0.09269012]
[1760590294656,0.0017621,111190.0,111180.0,0.22435896]
[1760590294858,0.0017621,111190.0,111180.0,0.09269012]
[1760590295117,0.0017621,111190.0,111180.0,0.22435896]
[1760590295326,0.0017621,111190.0,111180.0,0.09269012]
[1760590295530,0.0017621,111190.0,111180.0,0.11067896]
[1760590295741,0.0017621,111190.0,111180.0,0.22431896]
[1760590295941,0.0017621,111190.0,111180.0,0.20633012]
[1760590296154,0.0017621,111190.0,111180.0,0.09269012]
[1760590296359,0.0017621,111190.0,111180.0,0.22431896]
[1760590296561,0.0017621,111190.0,111180.0,0.5914023]
[1760590296790,0.0017621,111190.0,111180.0,0.4777623]
[1760590296993,0.0017621,111190.0,111180.0,0.5914023]
[1760590297440,0.0017621,111190.0,111180.0,0.97647448]
[1760590297643,0.0017621,111190.0,111180.0,0.4777623]
[1760590297848,0.0017621,111190.0,111180.0,0.5914023]
[1760590298257,0.0017621,111190.0,111180.0,0.20633012]
[1760590298459,0.0017621,111190.0,111180.0,0.5914023]
[1760590298931,0.0017621,111190.0,111180.0,0.97647448]
[1760590299134,0.0017621,111190.0,111180.0,0.86283448]
[1760590299337,0.0017621,111190.0,111180.0,0.97647448]
[1760590299539,0.0017621,111190.0,111180.0,0.86283448]
[1760590299743,0.0017621,111190.0,111180.0,0.97647448]
[1760590300186,0.0017621,111190.0,111180.0,1.01265676]
[1760590300396,0.0017621,111190.0,111180.0,1.53254522]
[1760590305222,0.0017621,111190.0,111180.0,1.29301676]
[1760590305357,0.0017621,111190.0,111180.0,1.47290522]
[1760590305560,0.0017621,111190.0,111180.0,1.58654522]
[1760590305773,0.0017621,111190.0,111180.0,1.47290522]
[1760590306142,0.0017621,111190.0,111180.0,1.58654522]
[1760590306496,0.0017621,111190.0,111180.0,1.58650522]
[1760590306699,0.0017621,111190.0,111180.0,1.40661676]
[1760590306908,0.0017621,111190.0,111180.0,1.47290522]
[1760590307109,0.0017621,111190.0,111180.0,1.58650522]
[1760590309038,0.0017621,111190.0,111180.0,1.47290522]
[1760590309243,0.0017621,111190.0,111180.0,0.81636086]
[1760590309485,0.0017621,111190.0,111180.0,0.5228724]
[1760590309734,0.0017621,111190.0,111180.0,1.58650522]
[1760590311390,0.0017621,111190.0,111180.0,1.8579774]
[1760590311591,0.0017621,111190.0,111180.0,1.9715774]
[1760590311801,0.0017621,111190.0,111180.0,1.8579774]
[1760590312228,0.0017621,111190.0,111180.0,1.9715774]
[1760590312866,0.0017621,111190.0,111180.0,1.8579774]
[1760590313076,0.0017621,111190.0,111180.0,1.9685774]
[1760590313285,0.0017621,111190.0,111180.0,1.9715774]
[1760590313541,0.0017621,111190.0,111180.0,1.9745774]
[1760590313745,0.0017621,111190.0,111180.0,1.9685774]
[1760590313973,0.0017621,111190.0,111180.0,1.9725774]
[1760590314169,0.0017621,111190.0,111180.0,1.9755774]
[1760590314596,0.0017621,111190.0,111180.0,3.01719394]
[1760590314804,0.0017621,111190.0,111180.0,3.15767671]
[1760590315007,0.0017621,111190.0,111180.0,3.04407671]
[1760590315223,0.0017621,111190.0,111180.0,3.15767671]
[1760590315852,0.0017621,111190.0,111180.0,3.04407671]
[1760590316061,0.0017621,111190.0,111180.0,3.15767671]
[1760590316496,0.00164294,111190.0,111180.0,3.15767671]
[1760590316919,0.00164294,111190.0,111180.0,3.25262671]
[1760590317139,0.00164294,111190.0,111180.0,3.65262671]
[1760590317341,0.00164294,111190.0,111180.0,3.53902671]
[1760590317557,0.00164294,111190.0,111180.0,3.65262671]
[1760590317979,0.00164294,111190.0,111180.0,3.53902671]
[1760590318183,0.00164294,111190.0,111180.0,3.55767671]
[1760590318403,1e-08,111190.0,111180.0,3.55767671]
[1760590318605,1e-08,111190.0,111180.0,3.44407671]
[1760590318819,1e-08,111190.0,111180.0,3.55767671]
[1760590319250,1e-08,111190.0,111180.0,3.55763671]
[1760590319465,1e-08,111190.0,111180.0,3.41719394]
[1760590319689,1e-08,111190.0,111180.0,3.53075394]
[1760590320103,1e-08,111190.0,111180.0,3.41719394]
[1760590320321,1e-08,111190.0,111180.0,3.53075394]
[1760590320539,1e-08,111200.0,111180.0,3.53075394]
[1760590320760,1e-08,111200.0,111190.0,1.81894845]
[1760590320971,0.64555587,111270.0,111220.0,0.18881495]
[1760590321182,0.64570567,111270.0,111240.0,0.4747623]
[1760590321397,0.64570567,111270.0,111250.0,0.18553752]
[1760590321398,0.38522198,111270.0,111250.0,0.18553752]
[1760590321639,0.38522198,111270.0,111260.0,0.08969012]
[1760590321853,0.56496494,111270.0,111260.0,0.20325012]
[1760590322061,0.56496494,111270.0,111260.0,0.08969012]
[1760590322268,0.38522198,111270.0,111260.0,0.20325012]
[1760590322484,0.38522198,111270.0,111260.0,0.08969012]
[1760590322688,0.0001498,111270.0,111260.0,0.20325012]
[1760590322915,0.0001498,111270.0,111260.0,0.08969012]
[1760590323118,0.0001498,111270.0,111260.0,0.20325012]
[1760590323322,0.0001498,111270.0,111260.0,0.20425012]
[1760590323538,0.0001498,111270.0,111260.0,0.20325012]
[1760590324626,0.0001498,111270.0,111260.0,0.5883223]
[1760590324841,0.0001498,111270.0,111260.0,0.4757623]
[1760590325045,0.0001498,111270.0,111260.0,0.4777623]
[1760590325255,0.0001498,111270.0,111260.0,0.5883223]
[1760590325671,0.38522198,111270.0,111260.0,0.09269012]
[1760590325887,0.38522198,111270.0,111260.0,0.09069012]
[1760590326094,0.56496494,111270.0,111260.0,0.09169012]
[1760590326295,0.38522198,111270.0,111260.0,0.09169012]
[1760590326509,0.56496494,111270.0,111260.0,0.20725012]
[1760590326746,0.56965987,111270.0,111260.0,0.20725012]
[1760590326987,0.56965987,111270.0,111260.0,0.09369012]
[1760590327248,0.56965987,111270.0,111260.0,0.09169012]
[1760590327680,0.90965987,111270.0,111260.0,0.20325012]
[1760590327895,0.90965987,111270.0,111260.0,0.08969012]
[1760590328111,0.90965987,111270.0,111260.0,0.20425012]
[1760590328534,0.90965987,111270.0,111260.0,0.09069012]
[1760590328747,0.00484473,111270.0,111260.0,0.20625012]
[1760590328951,0.00484473,111270.0,111260.0,0.09069012]
[1760590329155,0.00484473,111270.0,111260.0,0.22222603]
[1760590329362,0.00484473,111270.0,111260.0,0.20625012]
[1760590330018,0.00484473,111270.0,111260.0,0.09269012]
[1760590330224,0.00484473,111270.0,111260.0,0.20621012]
[1760590331045,0.18458769,111270.0,111260.0,0.20621012]
[1760590331253,0.18458769,111270.0,111260.0,0.09269012]
[1760590332113,0.18458769,111270.0,111260.0,0.20621012]
[1760590332736,0.18458769,111270.0,111260.0,0.09269012]
[1760590332958,0.56889681,111270.0,111260.0,0.20621012]
[1760590333164,0.56889681,111270.0,111260.0,0.09269012]
[1760590333575,0.56889681,111270.0,111260.0,0.20621012]
[1760590334446,0.56889681,111270.0,111260.0,0.09269012]
[1760590334664,0.56889681,111270.0,111260.0,0.003]
[1760590334665,0.95320593,111270.0,111260.0,0.003]
[1760590334871,3.56795129,111270.0,111260.0,0.003]
[1760590335082,3.5949783,111270.0,111260.0,0.09932]
[1760590335295,3.5949783,111270.0,111260.0,0.003]
[1760590335506,3.5949783,111270.0,111260.0,0.11352]
[1760590335929,3.5949783,111270.0,111260.0,0.002]
[1760590336137,3.5949783,111270.0,111260.0,0.11552]
[1760590336585,3.5949783,111270.0,111260.0,0.002]
[1760590336839,3.68466038,111270.0,111260.0,0.11552]
[1760590337019,3.68466314,111270.0,111260.0,0.11552]
[1760590337226,3.68466314,111270.0,111260.0,0.002]
[1760590337654,3.68466314,111270.0,111260.0,0.11552]
[1760590338722,3.59498106,111270.0,111260.0,0.11552]
[1760590339562,3.59498106,111270.0,111260.0,0.002]
[1760590339806,3.59498106,111270.0,111260.0,0.11552]
[1760590340060,3.59498106,111270.0,111260.0,0.002]
[1760590340264,3.61896718,111270.0,111260.0,0.002]
[1760590340484,3.23465806,111270.0,111260.0,0.11552]
[1760590340687,3.59498106,111270.0,111260.0,0.002]
[1760590340888,3.59498106,111270.0,111260.0,0.11552]
[1760590341091,3.59498106,111270.0,111260.0,0.002]
[1760590341504,3.66234862,111270.0,111260.0,0.002]
[1760590341713,3.66234862,111270.0,111260.0,0.11552]
[1760590341945,3.62896718,111270.0,111260.0,0.11552]
[1760590342154,3.62896718,111270.0,111260.0,0.002]
[1760590342354,3.71389953,111270.0,111260.0,0.002]
[1760590342576,3.69018189,111270.0,111260.0,0.002]
[1760590342776,3.69018189,111270.0,111260.0,0.06556]
[1760590342954,3.77986397,111270.0,111260.0,0.06556]
[1760590343156,3.77986397,111270.0,111260.0,0.001]
[1760590343389,3.77986397,111270.0,111260.0,0.0636]
[1760590343591,3.77959549,111270.0,111260.0,0.002]
[1760590343797,3.80363755,111270.0,111260.0,0.07456]
[1760590344003,3.80363755,111270.0,111260.0,0.001]
[1760590344206,3.71395547,111270.0,111260.0,0.11452]
[1760590344629,3.68190074,111270.0,111260.0,0.11452]
[1760590345287,3.68190074,111270.0,111260.0,0.001]
[1760590345590,3.68190074,111270.0,111260.0,0.0636]
[1760590346028,3.68190074,111270.0,111260.0,0.11452]
[1760590346504,3.68190074,111270.0,111260.0,0.001]
[1760590346717,3.68190074,111270.0,111260.0,0.11452]
[1760590346858,3.70538094,111270.0,111260.0,0.11452]
[1760590347370,2.9132825,111270.0,111260.0,0.001]
[1760590347586,3.21067194,111270.0,111260.0,0.001]
[1760590347799,3.59498106,111270.0,111260.0,0.001]
[1760590348019,3.59498106,111270.0,111260.0,0.11452]
[1760590348235,3.59498106,111270.0,111260.0,0.001]
[1760590348440,3.59498106,111270.0,111260.0,0.11452]
[1760590349085,3.59498106,111270.0,111260.0,0.001]
[1760590349302,3.59498106,111270.0,111260.0,0.11452]
[1760590349562,0.5708013,111270.0,111260.0,0.11452]
[1760590349788,0.00484473,111270.0,111260.0,0.20421012]
[1760590349999,0.56889681,111270.0,111260.0,0.20421012]
[1760590350228,0.56889681,111270.0,111260.0,0.09069012]
[1760590350440,0.56889681,111270.0,111260.0,0.20421012]
[1760590352540,0.56889681,111270.0,111260.0,0.20334944]
[1760590352961,0.56889681,111270.0,111260.0,0.08982944]
[1760590353168,0.18458769,111270.0,111260.0,0.20334944]
[1760590353354,0.56889681,111270.0,111260.0,0.08982944]
[1760590353602,0.56889681,111270.0,111260.0,0.20334944]
[1760590353809,0.56889681,111270.0,111260.0,0.08982944]
[1760590354439,0.38430912,111270.0,111260.0,0.20334944]
[1760590354643,0.56405208,111270.0,111260.0,0.20334944]
[1760590355059,0.38430912,111270.0,111260.0,0.08982944]
[1760590355268,0.56405208,111270.0,111260.0,0.20334944]
[1760590355491,2.247231,111270.0,111260.0,0.08982944]
[1760590355697,0.17974296,111270.0,111260.0,0.20334944]
[1760590356119,0.17974296,111270.0,111260.0,0.08982944]
[1760590356947,0.17974296,111270.0,111260.0,0.20334944]
[1760590357155,2.247231,111270.0,111260.0,0.20334944]
[1760590357359,0.17974296,111270.0,111260.0,0.20334944]
[1760590357860,0.17974296,111270.0,111260.0,0.08982944]
[1760590358073,0.17974296,111270.0,111260.0,0.20334944]
[1760590358937,0.51992781,111280.0,111260.0,0.08982944]
[1760590359145,0.52042704,111280.0,111270.0,0.11352]
[1760590359387,0.18042604,111280.0,111270.0,0.20321012]
[1760590360321,0.18042604,111280.0,111270.0,0.20317012]
[1760590360999,0.00069923,111280.0,111270.0,0.20417012]
[1760590361222,0.00069923,111280.0,111270.0,0.09069012]
[1760590361441,0.00069923,111280.0,111270.0,0.20417012]
[1760590361681,0.00069923,111280.0,111270.0,0.20517012]
[1760590362142,0.00069923,111280.0,111270.0,0.58947924]
[1760590362324,0.00069923,111280.0,111270.0,0.09169012]
[1760590362532,0.00069923,111280.0,111270.0,0.49397353]
[1760590362740,0.00069923,111280.0,111270.0,0.58947924]
[1760590362958,0.00069923,111280.0,111270.0,0.47599924]
[1760590363181,0.00069923,111280.0,111270.0,1.31378836]
[1760590363412,0.00069923,111280.0,111270.0,0.81599924]
[1760590363629,0.00069923,111280.0,111270.0,0.92947924]
[1760590363833,0.00069923,111280.0,111270.0,1.49353132]
[1760590364465,0.00069923,111280.0,111270.0,1.20030836]
[1760590364684,0.00128584,111280.0,111270.0,1.31378836]
[1760590364883,0.00128584,111280.0,111270.0,0.81499924]
[1760590365126,0.00128584,111280.0,111270.0,0.81799924]
[1760590365581,0.00128584,111280.0,111270.0,0.09369012]
[1760590365796,0.00128584,111280.0,111270.0,0.14665012]
[1760590366028,0.56532177,111280.0,111270.0,0.14865012]
[1760590366265,0.38559496,111280.0,111270.0,0.14865012]
[1760590366485,0.38559496,111280.0,111270.0,0.26013012]
[1760590366711,0.00128584,111280.0,111270.0,0.26013012]
[1760590366947,0.00128584,111280.0,111270.0,0.14565012]
[1760590367081,0.00128584,111280.0,111270.0,0.25913012]
[1760590367313,0.00128584,111280.0,111270.0,0.25713012]
[1760590367515,0.00128584,111280.0,111270.0,0.25813012]
[1760590367719,0.00128584,111280.0,111270.0,0.14665012]
[1760590367928,0.00128584,111280.0,111270.0,0.25813012]
[1760590368339,0.00128584,111280.0,111270.0,0.26013012]
[1760590368649,0.00128584,111280.0,111270.0,0.64443924]
[1760590368862,0.00128584,111280.0,111270.0,0.53095924]
[1760590369073,0.00128584,111280.0,111270.0,0.64443924]
[1760590371540,0.00128584,111280.0,111270.0,0.26013012]
[1760590371749,0.00128584,111280.0,111270.0,0.60013012]
[1760590371965,0.00128584,111280.0,111270.0,1.48673366]
[1760590373042,0.00128584,111280.0,111270.0,0.81505536]
[1760590373261,0.00128584,111280.0,111270.0,1.3059907]
[1760590373460,0.00128584,111280.0,111270.0,1.3089907]
[1760590373689,0.00128584,111280.0,111270.0,1.3069907]
[1760590375289,0.00128584,111280.0,111270.0,1.3089907]
[1760590376566,0.00128584,111280.0,111270.0,1.3089507]
[1760590377941,0.00128584,111280.0,111270.0,1.10536842]
[1760590378145,0.00898472,111300.0,111270.0,0.60209012]
[1760590378346,0.1888151,111300.0,111280.0,0.25709012]
[1760590378553,0.00058652,111290.0,111280.0,0.25709012]
[1760590379817,0.00058652,111290.0,111280.0,0.25809012]
[1760590379999,0.00058652,111290.0,111280.0,0.25709012]
[1760590380383,0.00058652,111290.0,111280.0,0.25909012]
[1760590381126,0.00058652,111290.0,111280.0,0.26100803]
[1760590383672,0.00058652,111290.0,111280.0,0.14756803]
[1760590383895,0.00058652,111290.0,111280.0,0.27898071]
[1760590384293,0.18029718,111290.0,111280.0,0.09360803]
[1760590384536,0.85097548,111290.0,111280.0,0.14756803]
[1760590384745,3.09820648,111290.0,111280.0,0.05796]
[1760590385401,3.09820648,111290.0,111280.0,0.1714]
[1760590385609,3.09820648,111290.0,111280.0,0.1694]
[1760590385883,3.09820648,111290.0,111280.0,0.05696]
[1760590386291,3.09820648,111290.0,111280.0,0.1684]
[1760590386509,3.09820648,111290.0,111280.0,0.1694]
[1760590386727,3.09820648,111290.0,111280.0,0.05596]
[1760590386932,3.09820648,111290.0,111280.0,0.1684]
[1760590387362,2.42752818,111290.0,111280.0,0.1684]
[1760590387575,3.09820648,111290.0,111280.0,0.05596]
[1760590387819,3.09820648,111290.0,111280.0,0.1694]
[1760590389141,3.09820648,111290.0,111280.0,0.05596]
[1760590389355,3.09820648,111290.0,111280.0,0.1694]
[1760590389795,3.43820648,111290.0,111280.0,0.05596]
[1760590389987,3.547127,111290.0,111280.0,0.05596]
[1760590390239,3.43820648,111290.0,111280.0,0.145]
[1760590390464,3.43820648,111290.0,111280.0,0.15396]
[1760590390858,3.43820648,111290.0,111280.0,0.05496]
[1760590391098,3.43820648,111290.0,111280.0,0.1684]
[1760590391322,3.43820648,111290.0,111280.0,0.14304]
[1760590391524,3.53629348,111290.0,111280.0,0.14304]
[1760590392576,3.62597556,111290.0,111280.0,0.14304]
[1760590392782,3.62597556,111290.0,111280.0,0.08908]
[1760590393621,3.53629348,111290.0,111280.0,0.08908]
[1760590393834,3.54629348,111290.0,111280.0,0.001]
[1760590394040,3.54629348,111290.0,111280.0,0.11444]
[1760590394254,3.54629348,111290.0,111280.0,0.06348]
[1760590394465,3.54629348,111290.0,111280.0,0.001]
[1760590394674,3.54629348,111290.0,111280.0,0.11444]
[1760590395100,3.54629348,111290.0,111280.0,0.001]
[1760590395308,3.63597556,111290.0,111280.0,0.11444]
[1760590395743,3.67215784,111290.0,111280.0,0.001]
[1760590395953,3.67215784,111290.0,111280.0,0.11444]
[1760590395954,3.60169207,111290.0,111280.0,0.11444]
[1760590396157,3.58247576,111290.0,111280.0,0.11444]
[1760590396309,3.36650258,111290.0,111280.0,0.11444]
[1760590396512,3.54621324,111290.0,111280.0,0.11444]
[1760590398986,3.54621324,111290.0,111280.0,0.001]
[1760590399437,3.66291873,111290.0,111280.0,0.06344]
[1760590399863,3.66291873,111290.0,111280.0,0.11444]
[1760590401871,3.66291873,111290.0,111280.0,0.001]
[1760590402084,3.66291873,111290.0,111280.0,0.11444]
[1760590403357,3.57323665,111290.0,111280.0,0.11444]
[1760590403997,3.57323665,111290.0,111280.0,0.001]
[1760590404474,3.57323665,111290.0,111280.0,0.06344]
[1760590406197,3.57323665,111290.0,111280.0,0.11444]
[1760590407499,3.23323665,111290.0,111280.0,0.11444]
[1760590408755,3.41260885,111290.0,111280.0,1e-08]
[1760590408965,3.82481906,111290.0,111280.0,1e-08]
[1760590409610,4.16481906,111290.0,111280.0,1e-08]
[1760590410034,0.1797887,111250.0,111230.0,0.1257121]
[1760590410247,0.1797887,111250.0,111240.0,0.20313012]
[1760590411119,0.1797887,111250.0,111240.0,0.09018935]
[1760590411354,0.56417135,111250.0,111240.0,0.20362935]
[1760590411567,0.56417135,111250.0,111240.0,0.09018935]
[1760590412229,0.56417135,111250.0,111240.0,0.20362935]
[1760590412433,0.56417135,111250.0,111240.0,0.09118935]
[1760590412647,0.56417135,111250.0,111240.0,0.09218935]
[1760590412877,0.56417135,111250.0,111240.0,0.20562935]
[1760590413540,0.56417135,111250.0,111240.0,0.09218935]
[1760590413754,0.56417135,111250.0,111240.0,0.20562935]
[1760590415932,0.1797887,111250.0,111240.0,0.20562935]
[1760590416153,0.56417135,111250.0,111240.0,0.20562935]
[1760590416569,0.56417135,111250.0,111240.0,0.09218935]
[1760590416798,0.56417135,111250.0,111240.0,0.20562935]
[1760590418080,0.56417135,111250.0,111240.0,0.09218935]
[1760590418281,0.56417135,111250.0,111240.0,0.20562935]
[1760590418697,0.59613026,111270.0,111240.0,0.476572]
[1760590418938,0.1797599,111260.0,111250.0,0.11344]
[1760590419176,0.56414255,111260.0,111250.0,0.20313012]
[1760590419375,0.56414255,111260.0,111250.0,0.08969012]
[1760590419653,0.38438265,111260.0,111250.0,0.20313012]
[1760590419855,0.56414255,111260.0,111250.0,0.20313012]
[1760590420479,0.1797599,111260.0,111250.0,0.20313012]
[1760590420690,0.56414255,111260.0,111250.0,0.20313012]
[1760590421759,0.9485252,111260.0,111250.0,0.09069012]
[1760590421970,0.9485252,111260.0,111250.0,0.20513012]
[1760590423871,0.1797599,111260.0,111250.0,0.09169012]
[1760590424073,0.9485252,111260.0,111250.0,0.20513012]
[1760590424279,1.33290785,111260.0,111250.0,0.002]
[1760590424487,3.58976228,111260.0,111250.0,0.002]
[1760590424701,3.5000802,111260.0,111250.0,0.11544]
[1760590425296,3.5000802,111260.0,111250.0,0.11444]
[1760590425527,0.17977528,111250.0,111240.0,0.00049923]
[1760590425735,0.56415793,111250.0,111240.0,0.11393923]
[1760590425917,0.56415793,111250.0,111240.0,0.00049923]
[1760590426094,0.56415793,111250.0,111240.0,0.11393923]
[1760590427491,1.41440494,111250.0,111240.0,0.00049923]
[1760590427694,3.64622908,111250.0,111240.0,0.03597923]
[1760590427908,3.6922387,111250.0,111240.0,0.03697923]
[1760590428119,3.6922387,111250.0,111240.0,0.10709923]